bitfinex/quotes_ETHUSD_20260310
["timestamp","ask_amount","ask_price","bid_price","bid_amount"]
[1773155879463,1.66852949,2070.2,2069.7,0.002]
[1773155879758,3.76600025,2070.5,2069.7,0.002]
[1773155879970,2.88231918,2070.4,2069.7,0.002]
[1773155880170,4.55084867,2070.4,2069.7,0.002]
[1773155880473,1.66852949,2070.1,2069.7,0.001]
[1773155880651,2.55852949,2070.4,2069.7,0.002]
[1773155880846,5.7591559,2070.3,2069.7,0.002]
[1773155881051,2.88307195,2070.2,2069.7,0.002]
[1773155881851,3.76591828,2070.6,2069.7,0.002]
[1773155882062,2.88038232,2070.5,2069.7,0.002]
[1773155882283,1.66852949,2070.2,2069.7,0.002]
[1773155882585,1.66852949,2070.2,2069.4,0.93]
[1773155882586,2.88021219,2070.1,2069.4,0.93]
[1773155882784,3.96797034,2070.5,2069.5,1.20802126]
[1773155883077,2.87985026,2070.4,2069.5,1.20802126]
[1773155883865,2.87774184,2070.9,2069.6,1.57515169]
[1773155884073,2.87864997,2070.8,2069.6,1.57515169]
[1773155884241,4.00292121,2070.6,2069.5,1.20802126]
[1773155884452,1.66852949,2070.6,2069.5,2.78317295]
[1773155884972,0.002,2070.9,2069.6,1.57515169]
[1773155885144,0.002,2070.9,2069.7,1.57515169]
[1773155885345,2.88029386,2070.9,2069.8,1.58869831]
[1773155885845,2.88029386,2070.9,2069.9,2.50515169]
[1773155886046,2.88029386,2070.9,2070.0,0.01354531]
[1773155886665,0.002,2070.9,2070.0,0.01354531]
[1773155886868,0.002,2070.9,2070.1,1.20767112]
[1773155887070,1.66852949,2070.8,2070.1,1.20767112]
[1773155887449,1.66852949,2070.6,2069.5,1.20796289]
[1773155887654,1.66852949,2070.5,2069.5,1.20796289]
[1773155888055,2.55852949,2070.8,2069.5,2.78311458]
[1773155888250,2.87823129,2070.7,2069.5,2.78311458]
[1773155888450,4.54676078,2070.7,2069.5,2.78311458]
[1773155888679,1.66852949,2070.7,2069.5,2.78311458]
[1773155889192,2.87586093,2070.7,2069.6,1.57515169]
[1773155889746,2.87586093,2070.7,2069.5,1.20796289]
[1773155889747,1.66852949,2070.5,2069.5,1.20796289]
[1773155890253,1.66852949,2070.5,2069.7,0.001]
[1773155891155,2.87601685,2070.5,2069.7,0.001]
[1773155892183,1.66852949,2070.5,2069.7,0.001]
[1773155892384,0.002,2070.7,2069.7,1.57615169]
[1773155892748,0.002,2070.7,2069.7,2.33539172]
[1773155892953,0.002,2070.7,2069.8,1.57515169]
[1773155893147,0.002,2070.7,2070.1,1.57515169]
[1773155893389,0.002,2070.9,2070.1,1.57515169]
[1773155894455,0.002,2070.9,2070.4,1.57515169]
[1773155895077,0.002,2070.9,2070.5,1.20743781]
[1773155895252,0.002,2070.9,2070.5,2.7825895]
[1773155895975,0.002,2070.9,2070.5,1.20743781]
[1773155898696,0.002,2071.2,2070.8,3.90954341]
[1773155898983,0.002,2071.2,2070.5,1.25573532]
[1773155898984,0.002,2071.2,2070.5,1.20743781]
[1773155901867,0.002,2071.2,2070.5,2.81044081]
[1773155902065,0.002,2071.2,2070.6,1.603003]
[1773155903186,0.002,2071.2,2070.5,1.20743781]
[1773155903777,0.002,2071.2,2070.7,0.001]
[1773155903960,0.002,2071.2,2070.4,1.25577065]
[1773155903961,1.50377062,2071.2,2070.4,1.25577065]
[1773155904189,0.002,2071.0,2070.4,1.25577065]
[1773155904491,0.002,2071.0,2070.5,0.001]
[1773155905101,0.002,2071.4,2070.9,1.603003]
[1773155905270,0.002,2071.4,2071.0,1.2071463]
[1773155906885,1.50377062,2071.4,2070.6,1.2073795]
[1773155907196,1.50377062,2071.4,2070.7,0.04829284]
[1773155907391,2.70874208,2071.3,2070.5,4.83052635]
[1773155907603,2.70874208,2071.3,2070.5,0.001]
[1773155907604,2.87717288,2071.2,2070.5,0.001]
[1773155907761,1.50177062,2071.1,2070.5,0.001]
[1773155908102,1.50177062,2070.9,2070.2,1.20860907]
[1773155908266,1.50177062,2070.9,2070.2,1.23751165]
[1773155908466,1.50177062,2070.9,2070.2,1.20860907]
[1773155909804,1.50177062,2070.8,2070.2,0.001]
[1773155910111,1.50177062,2070.6,2069.8,1.20780119]
[1773155910278,1.50177062,2070.6,2069.7,1.20887439]
[1773155910792,2.87955745,2070.5,2069.7,1.20887439]
[1773155911004,4.38132807,2070.5,2069.7,1.20887439]
[1773155911300,1.50177062,2070.3,2069.7,0.001]
[1773155912100,2.70938341,2070.2,2069.7,0.001]
[1773155912299,1.50177062,2070.1,2069.7,0.001]
[1773155912599,1.50177062,2070.3,2069.7,0.001]
[1773155913477,4.82952389,2070.6,2069.7,0.001]
[1773155913685,2.88011804,2070.5,2069.7,0.001]
[1773155913875,4.38188866,2070.5,2069.7,0.001]
[1773155914203,1.20755446,2070.3,2069.7,0.001]
[1773155914570,2.70925064,2070.5,2069.7,0.001]
[1773155914767,2.09126289,2070.8,2069.7,0.001]
[1773155914973,2.87935124,2070.7,2069.7,0.001]
[1773155915787,2.87935124,2070.7,2069.7,1.604003]
[1773155916010,2.70901663,2070.9,2069.8,1.603003]
[1773155916172,2.87884984,2070.8,2069.8,1.603003]
[1773155916373,5.58793122,2070.8,2069.9,1.20778781]
[1773155916586,4.38049792,2070.7,2069.9,1.20878781]
[1773155916790,0.002,2070.3,2069.9,1.20878781]
[1773155917299,0.002,2070.3,2069.9,0.001]
[1773155918407,1.50177062,2070.0,2069.6,0.001]
[1773155918589,1.50177062,2069.9,2069.2,0.001]
[1773155918907,1.50177062,2069.7,2069.2,0.001]
[1773155920315,0.884,2069.8,2069.2,0.001]
[1773155920511,1.20790452,2069.7,2069.2,0.001]
[1773155920720,3.59365933,2069.8,2069.2,0.001]
[1773155921009,4.83435725,2069.9,2069.2,0.001]
[1773155921221,1.50177062,2069.8,2069.2,0.001]
[1773155922479,2.70967028,2069.8,2069.2,0.001]
[1773155922682,1.20781668,2069.9,2069.2,0.001]
[1773155923212,2.09174417,2070.0,2069.2,0.001]
[1773155923413,3.59442698,2070.2,2069.2,0.001]
[1773155923582,1.20767112,2070.1,2069.2,0.001]
[1773155924197,3.5944141,2070.2,2069.2,0.001]
[1773155925419,1.20955735,2070.3,2069.2,1.604003]
[1773155925609,1.50177062,2070.2,2069.2,0.001]
[1773155926117,2.38677062,2070.2,2069.2,0.001]
[1773155926288,1.20955735,2070.3,2069.2,0.001]
[1773155926289,2.09455735,2070.3,2069.2,1.604003]
[1773155927114,3.5485598,2070.3,2069.3,1.20813801]
[1773155927912,2.6635598,2070.3,2069.3,1.20813801]
[1773155928113,3.5485598,2070.3,2069.3,1.20813801]
[1773155928309,1.45399853,2070.2,2069.3,1.20813801]
[1773155928922,2.09456127,2070.3,2069.3,1.20813801]
[1773155929115,2.09456127,2070.3,2069.2,4.83355207]
[1773155929311,2.09456127,2070.3,2069.2,6.33177833]
[1773155929629,0.002,2070.3,2069.6,2.33439172]
[1773155929790,0.002,2070.3,2069.7,1.49822626]
[1773155931127,0.002,2070.5,2069.9,2.70601407]
[1773155932225,0.002,2070.5,2069.9,1.20778781]
[1773155933030,0.002,2070.5,2069.7,4.83115126]
[1773155933533,0.002,2070.5,2069.7,6.32937752]
[1773155934634,0.002,2070.5,2069.7,1.49822626]
[1773155934808,0.002,2070.5,2069.6,4.83116465]
[1773155935304,1.20943781,2070.5,2069.5,1.20896289]
[1773155935506,2.65500935,2070.5,2069.5,1.20896289]
[1773155935709,1.44557154,2070.4,2069.5,1.20896289]
[1773155936219,2.65293479,2070.7,2069.7,1.49822626]
[1773155936433,2.88283734,2070.6,2069.5,1.20896289]
[1773155936632,0.888,2070.8,2069.8,1.49822626]
[1773155936934,2.88243337,2070.7,2069.8,1.49822626]
[1773155937304,2.88243337,2070.7,2069.9,1.20778781]
[1773155938647,4.08975632,2070.7,2069.9,1.20778781]
[1773155938812,2.88243337,2070.6,2069.9,1.20778781]
[1773155939437,1.20743781,2070.5,2069.7,4.83115126]
[1773155939615,2.09335197,2070.7,2069.7,6.32937752]
[1773155939819,2.88490606,2070.6,2069.8,0.02890816]
[1773155940327,1.44557154,2070.5,2069.8,0.02890816]
[1773155940543,1.44557154,2070.3,2069.5,0.001]
[1773155940754,1.44557154,2070.1,2069.5,1.20901371]
[1773155941249,2.33157154,2070.1,2069.5,1.20899246]
[1773155941743,1.20772946,2070.0,2069.5,0.001]
[1773155942047,7.12779981,2070.5,2069.5,0.001]
[1773155942048,4.95108103,2070.5,2069.5,1.2090194]
[1773155942346,3.77133901,2070.4,2069.5,1.2090194]
[1773155942508,2.88533901,2070.3,2069.5,1.2090194]
[1773155942917,4.33091055,2070.3,2069.5,1.2090194]
[1773155943123,2.88533901,2070.2,2069.5,1.2090194]
[1773155943534,0.002,2070.4,2069.5,5.0407626]
[1773155944754,0.002,2070.4,2069.8,1.49822626]
[1773155945051,0.002,2070.4,2069.5,1.2090194]
[1773155945214,0.887,2070.3,2069.5,1.2090194]
[1773155945738,1.44757154,2070.4,2069.5,0.001]
[1773155945937,0.002,2070.4,2069.7,2.33351694]
[1773155946250,4.09505592,2070.4,2069.5,1.49922626]
[1773155946450,2.65509355,2070.4,2069.5,0.001]
[1773155948853,0.887,2070.3,2069.5,0.001]
[1773155949225,0.002,2070.4,2069.5,1.49922626]
[1773155949417,0.887,2070.3,2069.5,1.49922626]
[1773155949618,1.20949817,2070.4,2069.5,1.49922626]
[1773155950346,0.002,2070.4,2069.5,1.49922626]
[1773155950779,2.33351694,2070.2,2069.5,0.001]
[1773155950925,2.88724886,2070.1,2069.5,1.20899323]
[1773155951253,2.09555446,2070.3,2069.5,1.20899323]
[1773155951554,2.8883111,2070.2,2069.5,1.20899323]
[1773155951729,2.8883111,2070.1,2069.5,1.20899323]
[1773155951930,1.44757154,2070.4,2069.6,0.02712247]
[1773155952147,2.88813662,2070.3,2069.6,1.52534873]
[1773155952451,0.002,2070.4,2069.7,1.49822626]
[1773155952660,0.002,2070.4,2069.8,1.20784616]
[1773155953124,2.890717,2070.4,2069.6,4.83182012]
[1773155953323,0.002,2070.4,2069.6,4.83182012]
[1773155953727,2.89206489,2070.4,2069.6,4.83182012]
[1773155953924,2.89006489,2070.3,2069.6,4.83182012]
[1773155954148,0.002,2070.4,2069.6,4.83182012]
[1773155954346,2.89254607,2070.4,2069.6,1.20796289]
[1773155954544,1.44557154,2070.2,2069.6,1.20796289]
[1773155955326,2.89141506,2070.1,2069.6,1.20796289]
[1773155955725,2.89141506,2070.0,2069.5,0.001]
[1773155955967,2.89141506,2070.0,2069.7,0.001]
[1773155956131,4.3369866,2070.0,2069.5,1.20901919]
[1773155956342,1.44557154,2070.0,2069.5,0.001]
[1773155956655,1.44557154,2070.0,2069.5,1.20901582]
[1773155956950,2.33357154,2070.0,2069.5,1.20901582]
[1773155957658,1.20778781,2069.9,2069.5,0.001]
[1773155957858,3.54134614,2070.0,2069.5,0.001]
[1773155958627,2.65334614,2070.0,2069.5,0.001]
[1773155960560,0.89,2070.0,2069.5,0.001]
[1773155961749,2.64018451,2070.3,2069.5,0.001]
[1773155961951,2.89163099,2070.2,2069.5,1.38424954]
[1773155962150,0.002,2070.3,2069.7,1.38324954]
[1773155962529,0.002,2070.3,2069.8,1.20784616]
[1773155962935,0.002,2070.3,2069.9,1.38324954]
[1773155963467,0.002,2070.3,2069.8,1.20784616]
[1773155963661,0.002,2070.4,2069.9,1.38324954]
[1773155964665,0.002,2070.4,2069.7,1.20790452]
[1773155965169,0.002,2070.4,2069.8,1.38324954]
[1773155966644,0.002,2070.4,2069.9,1.20778781]
[1773155968068,0.002,2070.4,2069.5,4.83264175]
[1773155968069,1.43059893,2070.2,2069.5,1.20900474]
[1773155968236,3.78259168,2070.3,2069.5,0.001]
[1773155968237,1.43059893,2070.0,2069.5,0.001]
[1773155968443,1.43059893,2069.8,2069.3,0.001]
[1773155968665,1.20796289,2069.6,2069.1,0.001]
[1773155968881,2.89235906,2069.5,2069.1,0.001]
[1773155969741,0.892,2069.6,2069.1,0.001]
[1773155969941,2.89090094,2069.5,2069.1,0.001]
[1773155970347,0.892,2069.6,2069.1,0.001]
[1773155970768,2.09998944,2069.6,2069.1,0.001]
[1773155970951,2.63853391,2069.7,2069.5,0.001]
[1773155971287,3.78269873,2069.6,2069.2,0.001]
[1773155971443,4.31929952,2069.5,2069.2,0.001]
[1773155971645,4.31929952,2069.5,2069.0,0.001]
[1773155971646,4.31929952,2069.4,2069.0,0.001]
[1773155971957,2.88870059,2069.3,2069.0,0.001]
[1773155972150,4.31929952,2069.3,2069.0,0.001]
[1773155972461,2.88706435,2069.2,2069.0,0.001]
[1773155972663,4.31766328,2069.2,2068.3,4.83466539]
[1773155972970,1.20831319,2069.0,2068.3,1.20872213]
[1773155973163,3.53289564,2069.1,2068.3,1.20872213]
[1773155973919,0.894,2069.1,2068.3,2.59197167]
[1773155974176,2.31290847,2069.5,2068.4,1.38324954]
[1773155974177,0.894,2069.2,2068.4,1.38324954]
[1773155974983,0.895,2069.6,2068.6,1.38324954]
[1773155975366,1.43059893,2069.5,2068.5,1.20860526]
[1773155976101,0.895,2069.4,2068.5,2.5918548]
[1773155976596,1.43059893,2069.5,2068.6,1.38324954]
[1773155976803,1.43059893,2069.8,2068.6,1.38324954]
[1773155976958,5.51948017,2069.7,2068.7,1.20848842]
[1773155977158,2.63850345,2069.7,2068.7,1.20848842]
[1773155977813,1.43059893,2069.7,2068.8,1.38324954]
[1773155978012,0.896,2069.7,2068.8,1.38324954]
[1773155978318,2.63845304,2069.8,2068.8,1.38324954]
[1773155978499,1.43059893,2069.6,2068.7,1.20848842]
[1773155978877,2.88072042,2069.5,2068.5,4.83423736]
[1773155979111,2.63867856,2069.4,2068.5,4.83423736]
[1773155979412,0.896,2069.3,2068.5,4.83423736]
[1773155981176,1.2081964,2069.2,2068.5,4.83423736]
[1773155981600,1.20818196,2069.3,2068.5,6.2174869]
[1773155981979,1.20818196,2069.3,2068.6,1.38324954]
[1773155982385,2.63872492,2069.4,2068.6,1.38324954]
[1773155983605,0.002,2069.2,2068.7,1.20848842]
[1773155985407,0.002,2069.2,2068.7,2.59173796]
[1773155985624,0.002,2069.4,2069.0,1.38324954]
[1773155986112,0.002,2069.4,2068.9,1.20837159]
[1773155986700,0.002,2069.4,2068.9,2.52688623]
[1773155987099,0.002,2069.7,2069.0,1.31851464]
[1773155988025,0.002,2069.7,2069.1,2.52676943]
[1773155988197,0.002,2069.7,2069.2,1.31851464]
[1773155988531,0.002,2069.7,2069.1,1.20825479]
[1773155989401,0.002,2069.7,2069.1,2.50176815]
[1773155989920,0.002,2069.7,2069.2,1.29351336]
[1773155990219,0.002,2069.7,2069.4,1.29351336]
[1773155990598,2.53683106,2070.2,2069.4,1.29351336]
[1773155990599,0.002,2070.2,2069.4,1.29351336]
[1773155990923,0.002,2070.2,2069.5,1.29351336]
[1773155991987,0.002,2070.2,2069.6,1.20796289]
[1773155992808,0.002,2070.2,2069.6,2.50147625]
[1773155992997,0.002,2070.2,2069.7,1.29351336]
[1773155993753,0.002,2070.4,2069.8,1.29351336]
[1773155994100,0.002,2070.4,2069.9,2.50130117]
[1773155995434,0.002,2070.4,2070.0,1.29351336]
[1773155995634,0.002,2070.4,2070.1,1.29351336]
[1773155996047,0.002,2070.4,2069.9,1.20778781]
[1773155996469,0.002,2070.6,2070.1,3.6270303]
[1773155996798,1.32919391,2070.6,2069.8,4.83115126]
[1773155996998,1.32919391,2070.6,2069.9,1.20778781]
[1773155997223,0.002,2070.6,2070.0,2.24851336]
[1773155997430,0.002,2070.6,2070.1,1.29351336]
[1773155997937,0.002,2070.6,2070.0,0.955]
[1773155998298,0.002,2070.6,2070.1,1.20767112]
[1773155998507,0.002,2070.6,2070.1,2.50118448]
[1773156000255,0.002,2070.4,2070.1,2.50118448]
[1773156000459,0.002,2070.4,2069.9,4.83109775]
[1773156000749,0.002,2070.4,2070.0,0.956]
[1773156001321,0.002,2070.6,2070.1,1.29351336]
[1773156001522,0.002,2070.6,2070.0,0.956]
[1773156002025,0.002,2070.6,2070.1,1.29351336]
[1773156002387,0.002,2070.6,2070.0,0.956]
[1773156002388,0.002,2070.7,2070.4,2.50100949]
[1773156002656,0.002,2070.7,2070.5,2.25151336]
[1773156002856,0.002,2070.9,2070.6,1.29351336]
[1773156003167,0.002,2071.4,2070.6,1.29351336]
[1773156004323,0.002,2071.4,2070.8,1.29351336]
[1773156004635,0.002,2071.4,2070.9,2.25251336]
[1773156004833,0.002,2071.4,2071.0,1.29351336]
[1773156005021,0.002,2071.4,2070.9,0.959]
[1773156005022,0.79223385,2071.7,2071.2,1.29351336]
[1773156005223,1e-08,2071.7,2071.2,1.29351336]
[1773156005450,1.32719391,2072.6,2071.5,1.29351336]
[1773156005648,1.52383298,2072.8,2071.9,3.6262577]
[1773156005822,1.52383298,2072.8,2072.0,0.96]
[1773156006024,0.3177264,2072.8,2072.0,2.25351336]
[1773156006224,1.32719391,2073.8,2072.2,1.29351336]
[1773156006479,1.32719391,2073.6,2072.6,1.20621441]
[1773156006825,1.32719391,2073.6,2072.6,2.16621441]
[1773156007026,2.53265222,2073.9,2072.6,3.45972777]
[1773156007247,2.53265222,2073.9,2072.8,2.33274434]
[1773156007521,2.53265222,2073.9,2072.6,2.16621441]
[1773156007752,1.32719391,2073.8,2072.6,2.16621441]
[1773156008553,1.32719391,2073.6,2072.6,2.16621441]
[1773156008881,1.20556205,2073.8,2072.7,1.29351336]
[1773156009172,2.53269304,2073.9,2072.9,3.6262577]
[1773156009342,2.53269304,2073.9,2072.9,1.29351336]
[1773156009864,3.85837172,2074.0,2073.0,3.6262577]
[1773156010168,1.32719391,2073.9,2073.1,0.961]
[1773156010544,2.6529274,2074.0,2073.2,1.20586532]
[1773156010768,1.20541827,2074.0,2073.2,2.49937868]
[1773156010973,2.53261218,2074.0,2073.1,2.1669171]
[1773156011342,1.20541827,2074.0,2073.2,1.29351336]
[1773156011544,1.20541827,2074.0,2073.1,0.961]
[1773156011545,1.32719391,2073.9,2073.1,0.961]
[1773156011946,1.32719391,2073.9,2073.1,2.1669124]
[1773156012365,4.82150128,2074.1,2073.2,3.6262577]
[1773156012366,1.20536992,2074.1,2073.2,3.6262577]
[1773156012573,0.1594293,2074.3,2073.6,1.29351336]
[1773156012768,2.53216595,2074.8,2073.8,3.6262577]
[1773156013083,2.53216595,2074.8,2073.9,1.29351336]
[1773156013084,1.20497204,2074.8,2073.9,1.29351336]
[1773156013582,4.81974166,2075.0,2074.0,3.6262577]
[1773156013583,1.20481927,2075.0,2074.0,3.6262577]
[1773156013758,1.20481927,2075.0,2074.1,1.29351336]
[1773156013960,1.20481927,2075.0,2073.7,0.961]
[1773156013961,1.32719391,2074.9,2073.7,0.961]
[1773156014260,1.32719391,2074.9,2073.7,2.25451336]
[1773156014652,0.002,2074.3,2073.8,2.4990298]
[1773156014980,1.32919391,2074.3,2073.1,1.20592349]
[1773156015477,1.32919391,2074.3,2073.1,2.49943685]
[1773156015681,0.002,2074.3,2073.2,1.29351336]
[1773156016481,0.002,2074.3,2073.4,1.29351336]
[1773156016686,0.002,2074.3,2073.7,1.29351336]
[1773156016847,0.002,2074.3,2073.8,0.962]
[1773156017053,1.20476121,2075.1,2073.9,3.6262577]
[1773156017385,2.53195512,2075.1,2074.0,1.29351336]
[1773156018182,1.32719391,2075.0,2073.4,1.20572178]
[1773156018346,1.32719391,2074.7,2073.4,1.20572178]
[1773156018752,1.32719391,2074.5,2073.4,1.20572178]
[1773156019576,2.51810826,2074.8,2073.7,1.40637434]
[1773156019777,1.31312981,2074.7,2073.4,2.61209612]
[1773156020675,1.31312981,2074.5,2073.4,2.61209612]
[1773156021583,1.31312981,2074.5,2073.3,2.1677554]
[1773156022678,2.51829756,2074.4,2073.3,2.1677554]
[1773156023079,1.31312981,2074.3,2073.3,2.1677554]
[1773156023270,1.31312981,2074.2,2073.3,0.962]
[1773156023671,1.31312981,2074.2,2073.3,2.16780086]
[1773156023879,2.20612981,2074.2,2073.3,2.16780086]
[1773156024272,1.31312981,2074.2,2073.3,2.16780086]
[1773156024884,1.20534207,2074.1,2073.3,2.16780086]
[1773156025084,1.20534207,2074.1,2073.3,2.16780608]
[1773156025596,1.31312981,2074.0,2072.8,1.40637434]
[1773156025895,1.31312981,2074.0,2072.9,1.20603984]
[1773156026199,1.31312981,2073.5,2072.2,4.82577177]
[1773156026871,1.31312981,2073.3,2072.2,4.82577177]
[1773156027378,1.31312981,2073.3,2072.2,1.20644725]
[1773156027578,1.31312981,2073.3,2072.1,5.78790717]
[1773156027579,1.31312981,2073.3,2072.1,0.962]
[1773156027780,4.43149335,2073.4,2070.6,14.23837641]
[1773156027781,1.31312981,2072.7,2071.5,1.20682971]
[1773156027984,1.31312981,2072.4,2071.4,2.16888673]
[1773156028289,1.31312981,2072.4,2071.5,0.01654995]
[1773156028592,1.31312981,2072.4,2071.4,2.16888673]
[1773156028981,1.31312981,2072.7,2071.5,1.40637434]
[1773156029673,1.31312981,2072.7,2071.4,2.16888673]
[1773156030081,1.31312981,2072.6,2071.4,2.16888673]
[1773156031168,1.20627261,2072.5,2071.4,2.16888673]
[1773156031510,1.20627261,2072.5,2071.4,0.962]
[1773156031666,1.31312981,2072.3,2071.1,1.20708802]
[1773156031866,1.31312981,2072.1,2071.2,0.01655139]
[1773156032065,1.31312981,2072.1,2070.9,1.20716056]
[1773156032488,2.20612981,2072.1,2070.9,1.20716056]
[1773156032712,1.31312981,2072.0,2070.9,1.20716056]
[1773156032867,1.31312981,2071.5,2070.8,0.964]
[1773156033073,1.31312981,2071.3,2070.8,0.001]
[1773156033590,1.31312981,2071.2,2070.5,0.001]
[1773156033790,1.31312981,2070.9,2070.3,0.001]
[1773156034072,1.31312981,2070.9,2069.7,0.963]
[1773156034073,1.31312981,2070.9,2070.0,1.20769482]
[1773156035087,1.20726289,2070.8,2069.8,1.20784616]
[1773156035678,1.31312981,2070.7,2069.7,2.17086053]
[1773156036122,2.20612981,2071.1,2069.7,4.50360487]
[1773156036417,2.52024706,2071.1,2069.8,1.40637434]
[1773156036584,1.20707447,2071.2,2070.0,3.73911868]
[1773156036778,4.82790746,2071.3,2070.1,1.40637434]
[1773156037413,4.82790746,2071.3,2070.2,1.20761279]
[1773156037708,2.52010127,2071.3,2070.2,1.20761279]
[1773156037933,5.21480038,2071.7,2070.6,2.33274434]
[1773156038136,2.09968814,2071.8,2070.7,1.40637434]
[1773156038627,1.2065637,2072.0,2070.7,1.40637434]
[1773156039149,1.31312981,2072.1,2071.0,1.40637434]
[1773156039150,1.20653905,2072.1,2071.0,1.40637434]
[1773156039444,1.31312981,2072.5,2071.1,1.20708802]
[1773156039740,1.31312981,2072.3,2071.1,1.20708802]
[1773156040609,1.31312981,2072.3,2071.2,2.33274434]
[1773156040829,0.002,2071.5,2071.2,2.33274434]
[1773156041021,1.31312981,2072.3,2071.1,1.20708802]
[1773156041224,1.31312981,2072.3,2071.2,2.33274434]
[1773156041409,0.002,2071.7,2071.3,1.20697146]
[1773156042640,0.002,2072.0,2071.3,1.20697146]
[1773156043506,0.096553,2072.6,2071.5,1.40637434]
[1773156043706,0.096553,2072.6,2072.0,3.73911868]
[1773156043943,2.20612981,2073.5,2072.3,2.33274434]
[1773156043944,1.2057932,2073.4,2072.3,2.33274434]
[1773156044236,1.2057932,2073.4,2072.2,0.964]
[1773156044627,2.5188671,2073.5,2072.4,2.33274434]
[1773156044819,2.49472021,2073.5,2072.4,2.33274434]
[1773156045440,1.20559007,2073.7,2072.7,2.33274434]
[1773156045643,1.20559007,2073.7,2072.6,1.20621441]
[1773156046044,7.51715095,2073.8,2072.7,1.40637434]
[1773156046045,1.20555963,2073.8,2072.7,1.40637434]
[1773156046340,2.51868944,2073.8,2072.8,0.965]
[1773156046543,1.20555963,2073.8,2072.8,0.965]
[1773156046719,1.20542728,2074.0,2072.9,2.33274434]
[1773156046922,1.31356072,2073.9,2072.8,0.965]
[1773156047517,1.20551644,2073.8,2072.9,1.20603984]
[1773156048136,1.20551644,2073.8,2072.8,2.17106364]
[1773156049646,2.44248529,2073.8,2072.8,2.17106364]
[1773156049846,2.44248529,2073.8,2072.8,0.965]
[1773156050021,2.44248529,2073.8,2072.8,2.1710858]
[1773156051629,2.44248529,2073.8,2072.0,0.065536]
[1773156051630,1.23696885,2073.6,2072.2,1.321461]
[1773156051829,1.23696885,2073.6,2072.3,1.20638903]
[1773156052242,1.23696885,2073.3,2072.3,1.20638903]
[1773156052552,1.23696885,2073.2,2072.2,2.1714452]
[1773156053549,1.23696885,2073.2,2072.2,1.20644279]
[1773156054134,2.44289234,2073.1,2072.0,1.2065637]
[1773156054330,4.82287843,2073.5,2072.0,1.2065637]
[1773156054331,2.44271786,2073.5,2072.2,1.321461]
[1773156054534,4.82307533,2073.4,2072.2,1.321461]
[1773156054741,1.20574901,2073.4,2072.3,0.964]
[1773156055751,1.20574901,2073.4,2072.4,0.001]
[1773156056143,1.20574901,2073.4,2072.4,1.20733082]
[1773156056658,6.05991902,2073.5,2072.5,1.321461]
[1773156056659,1.20574836,2073.5,2072.5,1.321461]
[1773156058137,0.002,2073.6,2072.6,1.20621441]
[1773156058568,1.23896885,2073.6,2072.6,1.20621441]
[1773156059450,1.23896885,2073.6,2072.5,2.52768749]
[1773156059765,1.23896885,2073.6,2072.6,1.321461]
[1773156060260,0.002,2073.6,2072.7,1.20615622]
[1773156060441,1.23896885,2073.6,2072.7,1.20615622]
[1773156061068,1.23696885,2073.4,2072.4,0.001]
[1773156061358,1.23696885,2073.3,2072.4,1.20732537]
[1773156061567,1.23696885,2073.3,2072.4,0.001]
[1773156061865,1.23696885,2073.1,2072.2,1.20644725]
[1773156062246,1.23696885,2072.8,2072.1,0.001]
[1773156062437,1.20598166,2073.0,2072.1,0.001]
[1773156063068,1.23696885,2072.8,2072.1,0.001]
[1773156063956,3.56399722,2072.8,2072.1,0.001]
[1773156064158,1.20615622,2072.7,2072.1,0.001]
[1773156064365,2.44312507,2072.7,2072.1,0.001]
[1773156064747,1.23696885,2072.6,2072.1,0.001]
[1773156066362,1.20627261,2072.5,2072.1,0.001]
[1773156066667,2.44324146,2072.5,2072.1,0.001]
[1773156067163,1.23696885,2072.4,2071.6,1.20679071]
[1773156067371,1.23696885,2072.4,2071.4,4.82754254]
[1773156067372,1.23696885,2072.4,2071.4,1.20688299]
[1773156067542,1.23696885,2072.4,2071.3,4.82787678]
[1773156067864,1.23696885,2072.4,2071.5,1.2068532]
[1773156068064,1.23696885,2072.4,2071.1,1.321461]
[1773156068274,1.23696885,2072.0,2071.0,0.963]
[1773156068489,1.23696885,2071.9,2071.0,1.20711745]
[1773156068765,2.13096885,2071.8,2070.8,1.20721687]
[1773156068969,1.23696885,2071.7,2070.8,1.20721687]
[1773156069172,1.23696885,2071.6,2070.5,1.321461]
[1773156069374,3.56399722,2071.4,2070.3,4.83014535]
[1773156069574,1.23696885,2071.3,2070.3,4.83014535]
[1773156069864,1.23696885,2071.3,2070.2,1.20859446]
[1773156070067,1.23696885,2071.3,2070.3,1.321461]
[1773156070241,4.77102696,2071.2,2070.2,0.001]
[1773156070639,2.10091319,2071.4,2070.3,1.321461]
[1773156070949,2.44388204,2071.4,2070.3,1.321461]
[1773156071170,3.56399722,2071.2,2070.2,0.001]
[1773156071361,1.23696885,2071.0,2070.2,0.001]
[1773156071980,1.23696885,2070.8,2070.2,0.001]
[1773156072274,1.20732119,2070.7,2070.2,0.001]
[1773156072447,2.44429004,2070.7,2070.2,0.001]
[1773156073003,1.20732119,2070.7,2070.2,0.001]
[1773156073641,1.20730124,2070.8,2070.2,0.001]
[1773156074345,2.44427009,2070.8,2070.2,0.001]
[1773156074675,1.23696885,2070.7,2070.2,0.001]
[1773156074874,1.23696885,2070.7,2070.0,0.001]
[1773156074875,1.23696885,2070.4,2070.0,0.001]
[1773156075184,1.20730124,2070.8,2069.7,0.001]
[1773156075185,2.32702837,2069.8,2069.7,0.001]
[1773156075383,2.32702837,2069.8,2069.0,0.001]
[1773156075384,1.23696885,2069.7,2069.0,0.001]
[1773156075578,2.13296885,2069.7,2069.0,0.001]
[1773156076086,2.60938959,2069.9,2069.3,1.20911784]
[1773156076253,1.20784616,2069.8,2069.3,0.001]
[1773156076982,0.896,2070.1,2069.3,0.001]
[1773156077149,1.23696885,2070.0,2069.3,0.001]
[1773156077760,2.32702837,2070.6,2069.3,1.322461]
[1773156077967,5.72688035,2070.5,2069.3,1.322461]
[1773156078160,3.34131223,2070.7,2069.4,1.321461]
[1773156078385,1.20732169,2070.7,2069.6,1.321461]
[1773156078583,1.2071463,2071.0,2069.7,1.321461]
[1773156078755,2.1041306,2071.1,2069.7,1.321461]
[1773156079112,3.35500985,2071.1,2069.7,1.321461]